fUSD/lending_fUSD_20240823
["ID","MTS","AMOUNT","RATE_DAILY","PERIOD"]
[335671406,1724411445889,-500.0,0.00010999,2]
[335671407,1724411445899,-500.0,0.00010999,2]
[335671408,1724411445908,-500.0,0.00010999,2]
[335671409,1724411445918,-500.0,0.00010999,2]
[335671410,1724411445927,-500.0,0.00010999,2]
[335671411,1724411445936,-500.0,0.00010999,2]
[335671412,1724411445945,-500.0,0.00010999,2]
[335671413,1724411445954,-500.0,0.00010999,2]
[335671414,1724411445964,-500.0,0.00010999,2]
[335671415,1724411445973,-500.0,0.00010999,2]
[335671416,1724411445983,-500.0,0.00010999,2]
[335671417,1724411445993,-535.11,0.00010999,2]
[335671418,1724411446004,-500.0,0.00010999,2]
[335671419,1724411446014,-339.54,0.00010999,2]
[335671420,1724411446023,-500.0,0.00010999,2]
[335671421,1724411446033,-500.0,0.00010999,2]
[335671422,1724411446043,-500.0,0.00010999,2]
[335671423,1724411446052,-500.0,0.00010999,2]
[335671424,1724411446062,-500.0,0.00010999,2]
[335671425,1724411446072,-500.0,0.00010999,2]
[335671426,1724411446082,-435.11,0.00010999,2]
[335671427,1724411446092,-741.9,0.00010999,2]
[335671428,1724411446101,-741.9,0.00010999,2]
[335671429,1724411446111,-741.9,0.00010999,2]
[335671430,1724411446121,-741.9,0.00010999,2]
[335671431,1724411446131,-741.9,0.00010999,2]
[335671432,1724411446141,-741.9,0.00010999,2]
[335671433,1724411446151,-741.9,0.00010999,2]
[335671434,1724411446162,-741.9,0.00010999,2]
[335671435,1724411446172,-741.9,0.00010999,2]
[335671436,1724411446182,-741.9,0.00010999,2]
[335671437,1724411446192,-741.9,0.00010999,2]
[335671438,1724411446203,-741.9,0.00010999,2]
[335671439,1724411446212,-741.9,0.00010999,2]
[335671440,1724411446221,-500.0,0.00010999,2]
[335671441,1724411446231,-665.74556673,0.00010999,2]
[335671442,1724411446244,-76.15443327,0.00010999,2]
[335671443,1724411446255,-741.9,0.00010999,2]
[335671444,1724411446265,-741.9,0.00010999,2]
[335671445,1724411446274,-741.9,0.00010999,2]
[335671446,1724411446286,-513.40773179,0.00010999,2]
[335671447,1724411446298,-228.49226821,0.00010999,2]
[335671448,1724411446307,-741.9,0.00010999,2]
[335671449,1724411446317,-525.60773179,0.00010999,2]
[335671450,1724411446336,-216.29226821,0.00010999,2]
[335671451,1724411446346,-741.9,0.00010999,2]
[335671452,1724411446355,-741.9,0.00010999,2]
[335671453,1724411446364,-742.13,0.00010999,2]
[335671454,1724411446374,-1900.49,0.00010999,2]
[335671455,1724411446383,-1900.49,0.00010999,2]
[335671456,1724411446392,-1900.49,0.00010999,2]
[335671457,1724411446401,-1900.49,0.00010999,2]
[335671458,1724411446411,-1900.49,0.00010999,2]
[335671459,1724411446420,-1900.49,0.00010999,2]
[335671460,1724411446429,-1900.49,0.00010999,2]
[335671461,1724411446439,-97.97952472,0.00010999,2]
[335671462,1724411446450,-513.18500005,0.00010999,2]
[335671464,1724411446627,-602.56499997,0.00010999,2]
[335671465,1724411446639,-686.76047526,0.00010999,2]
[335671466,1724411446649,-715.23952454,0.00010999,2]
[335671467,1724411446660,-1175.26064,0.00010999,2]
[335671468,1724411446671,-9.98983546,0.00010999,2]
[335671469,1724411446681,-1900.49,0.00010999,2]
[335671470,1724411446691,-324.3818328,0.00010999,2]
[335671471,1724411446702,-1576.1081672,0.00010999,2]
[335671472,1724411446712,-1900.49,0.00010999,2]
[335671473,1724411446722,-1900.49,0.00010999,2]
[335671474,1724411446732,-1900.49,0.00010999,2]
[335671475,1724411446741,-1169.4979202,0.00010999,2]
[335671476,1724411446758,-701.666667,0.00010999,2]
[335671477,1724411446769,-29.3254128,0.00010999,2]
[335671478,1724411446779,-528.52122913,0.00010999,2]
[335671479,1724411446790,-660.19,0.00010999,2]
[335671480,1724411446801,-711.77877087,0.00010999,2]
[335671481,1724411446811,-500.0,0.00010999,2]
[335671482,1724411446820,-992.6754656,0.00010999,2]
[335671483,1724411446831,-907.8145344,0.00010999,2]
[335671484,1724411446841,-98.81176639,0.00010999,2]
[335671485,1724411446852,-352.72799642,0.00010999,2]
[335671486,1724411446946,-158.49941736,0.000109,2]
[335671487,1724411446958,-48.46023719,0.00010999,2]
[335671488,1724411446968,-458.44034546,0.00010999,2]
[335671489,1724411446984,-391.95,0.00010999,2]
[335671490,1724411487820,359.0,0.00025,60]
[335671495,1724411580243,231.48,9.501e-05,2]
[335671496,1724411607359,1000.0,0.00026849,120]
[335671497,1724411607731,1000.0,0.00026849,120]
[335671498,1724411643988,500.0,0.00024932,120]
[335671499,1724411669431,200.0,0.00025457,120]
[335671500,1724411728514,1000.0,0.00025,60]
[335671501,1724411732407,1000.0,0.00025,61]
[335671502,1724411734285,1000.0,0.00025,62]
[335671503,1724411735941,1000.0,0.00025,63]
[335671504,1724411737613,1000.0,0.00025,64]
[335671505,1724411739237,1000.0,0.00025,65]
[335671506,1724411739885,712.47186453,0.00025,90]
[335671507,1724411741112,1000.0,0.00025,66]
[335671508,1724411743971,1000.0,0.00025,67]
[335671509,1724411748367,500.0,0.00025,68]
[335671510,1724411777875,2280.0,0.00025,60]
[335671512,1724412173650,1000.0,0.0001,2]
[335671513,1724412188944,1000.0,0.0001,3]
[335671514,1724412286043,219.9,8.435e-05,2]
[335671515,1724412321116,500.0,0.00027,120]
[335671565,1724412588963,266.74906548,0.00010097,2]
[335671567,1724412595529,316.9035925,0.00010097,2]
[335671584,1724412632308,-183.66,0.00010353,2]
[335671585,1724412632319,-266.377073,0.00010457,2]
[335671586,1724412632369,-472.14322502,0.00010457,2]
[335671587,1724412632381,-261.47970198,0.00010457,2]
[335671588,1724412632391,-216.34,0.00010581,2]
[335671589,1724412632400,-219.9,0.00010699,2]
[335671590,1724412632409,-531.18278664,0.00010888,2]
[335671591,1724412632419,-668.50216,0.0001089,2]
[335671592,1724412632428,-174.68941142,0.000109,2]
[335671593,1724412632438,-369.0612281,0.000109,2]
[335671594,1724412632447,-369.83197384,0.000109,2]
[335671595,1724412632458,-339.21788879,0.000109,2]
[335671596,1724412632470,-3943.02954023,0.000109,2]
[335671597,1724412632479,-500.0,0.00010912,2]
[335671598,1724412632489,-200.0,0.00010959,2]
[335671599,1724412632498,-150.0,0.00010989,2]
[335671600,1724412632507,-500.0,0.0001099,2]
[335671601,1724412632517,-150.67,0.0001099,2]
[335671602,1724412632526,-150.67,0.0001099,2]
[335671603,1724412632535,-150.67,0.0001099,2]
[335671604,1724412632545,-150.67,0.0001099,2]
[335671605,1724412632560,-150.67,0.0001099,2]
[335671606,1724412632570,-150.67,0.0001099,2]
[335671607,1724412632579,-150.67,0.0001099,2]
[335671608,1724412632591,-150.67,0.0001099,2]
[335671609,1724412632602,-150.67,0.0001099,2]
[335671610,1724412632612,-150.67,0.0001099,2]
[335671611,1724412632622,-150.67,0.0001099,2]
[335671612,1724412632632,-150.67,0.0001099,2]
[335671613,1724412632642,-150.67,0.0001099,2]
[335671614,1724412632651,-150.67,0.0001099,2]
[335671615,1724412632661,-150.67,0.0001099,2]
[335671617,1724412632671,-150.67,0.0001099,2]
[335671620,1724412632681,-2046.66531126,0.00010991,2]
[335671621,1724412632693,-2163.75115587,0.00010991,2]
[335671622,1724412632705,-1054.8607206,0.00010991,2]
[335671623,1724412632729,-534.72281227,0.00010991,2]
[335671624,1724412632739,-2887.31829415,0.00010991,2]
[335671625,1724412632750,-2563.75170585,0.00010991,2]
[335671626,1724412632760,-197.09206619,0.00010993,2]
[335671627,1724412632770,-297.42341449,0.00010993,2]
[335671628,1724412632780,-500.0,0.00010998,2]
[335671629,1724412632789,-500.0,0.00010998,2]
[335671630,1724412632798,-386.02992772,0.00010998,2]
[335671631,1724412632808,-520.76743912,0.00010998,2]
[335671632,1724412632817,-3614.83372251,0.00010998,2]
[335671633,1724412632827,-616.25256279,0.00010999,2]
[335671634,1724412632836,-5800.0,0.00010999,2]
[335671635,1724412632846,-500.0,0.00010999,2]
[335671636,1724412632855,-115.47716196,0.00010999,2]
[335671637,1724412632867,-153.32283804,0.00010999,2]
[335671638,1724412632876,-3101.76753196,0.00010999,2]
[335671639,1724412632891,-5003.70250805,0.00010999,2]
[335671640,1724412632902,-2750.01661525,0.00010999,2]
[335671643,1724412638309,-185.4429574,0.000109,2]
[335671645,1724412638319,-745.07324469,0.00010999,2]
[335671647,1724412638330,-5808.32989986,0.00010999,2]
[335671648,1724412638341,-408.0085986,0.00010999,2]
[335671649,1724412638352,-1076.7,0.00010999,2]
[335671650,1724412638363,-1106.40160159,0.00010999,2]
[335671651,1724412638372,-48.13856046,0.00010999,2]
[335671652,1724412638384,-913.185,0.00010999,2]
[335671653,1724412638520,-347.4718204,0.00010999,2]
[335671654,1724412638530,-150.0,0.00010999,2]
[335671655,1724412638539,-150.0,0.00010999,2]
[335671656,1724412638549,-253.79572633,0.00010999,2]
[335671657,1724412638562,-303.24533901,0.00010999,2]
[335671658,1724412638572,-500.0,0.00010999,2]
[335671659,1724412638582,-500.0,0.00010999,2]
[335671660,1724412638592,-500.0,0.00010999,2]
[335671661,1724412638603,-500.0,0.00010999,2]
[335671662,1724412638614,-500.0,0.00010999,2]
[335671663,1724412638627,-313.23,0.00010999,2]
[335671664,1724412638637,-500.0,0.00010999,2]
[335671665,1724412638647,-500.0,0.00010999,2]
[335671666,1724412638658,-500.0,0.00010999,2]
[335671667,1724412638669,-500.0,0.00010999,2]
[335671668,1724412638679,-500.0,0.00010999,2]
[335671669,1724412638689,-595.35,0.00010999,2]
[335671670,1724412638700,-500.0,0.00010999,2]
[335671671,1724412638710,-500.0,0.00010999,2]
[335671672,1724412638720,-500.0,0.00010999,2]
[335671673,1724412638730,-500.0,0.00010999,2]
[335671674,1724412638739,-3229.24,0.00010999,2]
[335671676,1724412638748,-500.0,0.00010999,2]
[335671678,1724412638757,-3229.24,0.00010999,2]
[335671680,1724412638767,-500.0,0.00010999,2]
[335671682,1724412638776,-881.65552097,0.00010999,2]
[335671684,1724412638787,-1282.96525935,0.00010999,2]
[335671774,1724412646411,-1064.61921968,0.00010999,2]
[335671775,1724412646424,-500.0,0.00010999,2]
[335671776,1724412646437,-500.0,0.00010999,2]
[335671777,1724412646450,-3229.24,0.00010999,2]
[335671778,1724412646461,-500.0,0.00010999,2]
[335671779,1724412646473,-3229.24,0.00010999,2]
[335671780,1724412646484,-500.0,0.00010999,2]
[335671781,1724412646496,-3229.24,0.00010999,2]
[335671782,1724412646508,-500.0,0.00010999,2]
[335671783,1724412646519,-3229.24,0.00010999,2]
[335671784,1724412646531,-500.0,0.00010999,2]
[335671785,1724412646542,-3229.24,0.00010999,2]
[335671786,1724412646554,-500.0,0.00010999,2]
[335671787,1724412646565,-500.0,0.00010999,2]
[335671788,1724412646575,-3229.24,0.00010999,2]
[335671789,1724412646585,-500.0,0.00010999,2]
[335671790,1724412646595,-3229.24,0.00010999,2]
[335671791,1724412646606,-500.0,0.00010999,2]
[335671792,1724412646617,-3229.24,0.00010999,2]
[335671793,1724412646628,-500.0,0.00010999,2]
[335671794,1724412646642,-3229.24,0.00010999,2]
[335671795,1724412646653,-500.0,0.00010999,2]
[335671796,1724412646665,-3229.24,0.00010999,2]
[335671797,1724412646676,-500.0,0.00010999,2]
[335671798,1724412646687,-3229.24,0.00010999,2]
[335671799,1724412646697,-500.0,0.00010999,2]
[335671800,1724412646708,-3229.24,0.00010999,2]
[335671801,1724412646720,-208.12,0.00010999,2]
[335671802,1724412646732,-3229.24,0.00010999,2]
[335671803,1724412646744,-3229.24,0.00010999,2]
[335671804,1724412646755,-3229.24,0.00010999,2]
[335671805,1724412646768,-3229.24,0.00010999,2]
[335671806,1724412646778,-3229.24,0.00010999,2]
[335671807,1724412646790,-3229.24,0.00010999,2]
[335671808,1724412646802,-3229.24,0.00010999,2]
[335671809,1724412646812,-3229.24,0.00010999,2]
[335671810,1724412646823,-3229.41098049,0.00010999,2]
[335671811,1724412646833,-500.0,0.00010999,2]
[335671812,1724412646845,-500.0,0.00010999,2]
[335671813,1724412646857,-500.0,0.00010999,2]
[335671814,1724412646869,-500.0,0.00010999,2]
[335671815,1724412646880,-500.0,0.00010999,2]
[335671816,1724412646891,-500.0,0.00010999,2]
[335671817,1724412646903,-500.0,0.00010999,2]
[335671818,1724412646914,-500.0,0.00010999,2]
[335671819,1724412646924,-291.19,0.00010999,2]
[335671820,1724412646934,-732.87,0.00010999,2]
[335671821,1724412646945,-732.87,0.00010999,2]
[335671822,1724412646956,-732.87,0.00010999,2]
[335671823,1724412646967,-732.87,0.00010999,2]
[335671824,1724412646978,-732.87,0.00010999,2]
[335671825,1724412646988,-732.87,0.00010999,2]
[335671826,1724412646999,-732.87,0.00010999,2]
[335671827,1724412647012,-732.87,0.00010999,2]
[335671828,1724412647023,-732.87,0.00010999,2]
[335671829,1724412647033,-732.87,0.00010999,2]
[335671830,1724412647043,-732.87,0.00010999,2]
[335671831,1724412647052,-732.87,0.00010999,2]
[335671832,1724412647063,-732.87,0.00010999,2]
[335671833,1724412647073,-732.87,0.00010999,2]
[335671834,1724412647083,-732.87,0.00010999,2]
[335671835,1724412647094,-732.87,0.00010999,2]
[335671836,1724412647104,-732.87,0.00010999,2]
[335671837,1724412647115,-732.87,0.00010999,2]
[335671838,1724412647126,-732.87,0.00010999,2]
[335671839,1724412647136,-732.87,0.00010999,2]
[335671840,1724412647146,-732.87,0.00010999,2]
[335671841,1724412647157,-732.87,0.00010999,2]
[335671842,1724412647168,-732.87,0.00010999,2]
[335671843,1724412647178,-732.91,0.00010999,2]
[335671844,1724412647188,-500.0,0.00010999,2]
[335671845,1724412647199,-500.0,0.00010999,2]
[335671846,1724412647211,-500.0,0.00010999,2]
[335671847,1724412647221,-500.0,0.00010999,2]
[335671848,1724412647232,-500.0,0.00010999,2]
[335671849,1724412647242,-500.0,0.00010999,2]
[335671850,1724412647252,-500.0,0.00010999,2]
[335671851,1724412647262,-500.0,0.00010999,2]
[335671852,1724412647273,-500.0,0.00010999,2]
[335671853,1724412647283,-500.0,0.00010999,2]
[335671854,1724412647293,-500.0,0.00010999,2]
[335671855,1724412647304,-500.0,0.00010999,2]
[335671856,1724412647315,-500.0,0.00010999,2]
[335671857,1724412647327,-500.0,0.00010999,2]
[335671858,1724412647338,-500.0,0.00010999,2]
[335671859,1724412647349,-500.0,0.00010999,2]
[335671860,1724412647360,-500.0,0.00010999,2]
[335671861,1724412647372,-500.0,0.00010999,2]
[335671862,1724412647383,-500.0,0.00010999,2]
[335671863,1724412647393,-500.0,0.00010999,2]
[335671864,1724412647404,-500.0,0.00010999,2]
[335671865,1724412647414,-500.0,0.00010999,2]
[335671866,1724412647426,-552.65965453,0.00010999,2]
[335671867,1724412647437,-500.0,0.00010999,2]
[335671868,1724412647449,-500.0,0.00010999,2]
[335671869,1724412647461,-500.0,0.00010999,2]
[335671870,1724412647471,-374.54,0.00010999,2]
[335671871,1724412647484,-500.0,0.00010999,2]
[335671872,1724412647494,-500.0,0.00010999,2]
[335671873,1724412647504,-500.0,0.00010999,2]
[335671874,1724412647517,-500.0,0.00010999,2]
[335671875,1724412647528,-500.0,0.00010999,2]
[335671876,1724412647539,-500.0,0.00010999,2]
[335671877,1724412647551,-500.0,0.00010999,2]
[335671878,1724412647568,-379.23,0.00010999,2]
[335671879,1724412647579,-500.0,0.00010999,2]
[335671880,1724412647592,-500.0,0.00010999,2]
[335671881,1724412647603,-500.0,0.00010999,2]
[335671882,1724412647614,-500.0,0.00010999,2]
[335671883,1724412647625,-500.0,0.00010999,2]
[335671884,1724412647641,-500.0,0.00010999,2]
[335671885,1724412647651,-500.0,0.00010999,2]
[335671886,1724412647661,-500.0,0.00010999,2]
[335671887,1724412647671,-356.35,0.00010999,2]
[335671888,1724412647682,-1870.16014427,0.00010999,2]
[335671889,1724412647695,-316.70496651,0.00010999,2]
[335671890,1724412647708,-3613.13488922,0.00010999,2]
[335671891,1724412647718,-500.0,0.00010999,2]
[335671892,1724412647730,-500.0,0.00010999,2]
[335671893,1724412647740,-460.21049164,0.00010999,2]
[335671894,1724412809870,231.79,8.596e-05,2]
[335671895,1724412871611,9472.08974622,0.00027,120]
[335671896,1724412961327,-258.62,0.00010212,2]
[335671897,1724412961350,-300.0,0.00010216,2]
[335671898,1724412961373,-200.0,0.00010217,2]
[335671899,1724412961396,-2046.38,0.00010217,2]
[335671900,1724413005018,158.98,7.416e-05,2]
[335671901,1724413049728,5770.81769793,7.416e-05,2]
[335671902,1724413050579,3074.12158258,7.416e-05,2]
[335671903,1724413063936,6023.36271218,0.00010022,2]
[335671904,1724413064427,1311.65694169,7.416e-05,2]
[335671905,1724413066464,10577.57192488,7.416e-05,2]
[335671906,1724413066489,5672.70130093,7.416e-05,2]
[335671907,1724413083635,500.0,7.416e-05,2]
[335671908,1724413086625,500.0,7.416e-05,2]
[335671909,1724413087244,500.0,7.416e-05,2]
[335671910,1724413087608,500.0,7.416e-05,2]
[335671911,1724413087955,500.0,7.416e-05,2]
[335671912,1724413088299,715.0,7.416e-05,2]
[335671913,1724413093728,760.05715064,7.416e-05,2]
[335671914,1724413099354,191.228063,0.00010003,2]
[335671915,1724413100074,2555.74396603,8.989e-05,2]
[335671916,1724413111987,3653.96868149,8.989e-05,2]
[335671917,1724413113249,1311.65694169,8.989e-05,2]
[335671919,1724413206221,800.0,9.982e-05,2]
[335671920,1724413217977,1050.0,0.0001,2]
[335671921,1724413224561,250.0,9.967e-05,2]
[335671922,1724413226793,1335.50865687,8.989e-05,2]
[335671923,1724413281956,500.0,0.00027,120]
[335671924,1724413297654,2586.19,9.921e-05,2]
[335671925,1724413336472,200.0,9.984e-05,2]
[335671926,1724413342896,1538.35,0.00027,120]
[335671927,1724413367302,2112.33,9.956e-05,2]
[335671928,1724413403430,1000.0,0.00026849,120]
[335671929,1724413403794,1000.0,0.00026849,120]
[335671930,1724413405164,236.9,9.939e-05,2]
[335671932,1724413433858,213.07,9.984e-05,2]
[335671933,1724413440031,500.0,9.876e-05,2]
[335671934,1724413440908,500.0,0.00024932,120]
[335671935,1724413458111,329.62,8.219e-05,2]
[335671936,1724413464521,200.0,0.000256,120]
[335671937,1724413532135,23900.0,9.823e-05,2]
[335671953,1724413613705,158.98,7.195e-05,2]
[335671954,1724413616535,697.83,9.866e-05,2]
[335671955,1724413618796,267.44,9.866e-05,2]
[335671960,1724413632613,797.91,9.965e-05,2]
[335671964,1724413691183,12126.29715151,0.00010009,2]
[335671989,1724413695145,5406.750295,0.00027,120]
[335671990,1724413726152,250.0,0.00010002,2]
[335671991,1724413730910,185.00937477,0.00010009,2]
[335672033,1724413782444,13493.544,9.926e-05,2]
[335672039,1724413784576,950.41281931,9.924e-05,2]
[335672047,1724413829112,253.32919331,0.00010009,2]
[335672061,1724413837471,-1000.0,0.00010019,2]
[335672062,1724413837483,-908.2,0.00010024,2]
[335672063,1724413837495,-1157.46,0.00010054,2]
[335672064,1724413837506,-155.31499189,0.00010097,2]
[335672065,1724413837518,-150.0,0.00010117,2]
[335672066,1724413837528,-150.0,0.00010274,2]
[335672067,1724413837540,-365.9057376,0.00010471,2]
[335672068,1724413837551,-329.62,0.00010474,2]
[335672069,1724413837562,-21708.73958939,0.00010505,2]
[335672070,1724413837573,-300.0,0.00010698,2]
[335672071,1724413837585,-300.0,0.00010698,2]
[335672072,1724413837597,-3035.12551289,0.00010713,2]
[335672073,1724413837609,-300.09116622,0.00010799,2]
[335672074,1724413837619,-155.0,0.00010852,2]
[335672075,1724413837631,-230.45100702,0.00010861,2]
[335672076,1724413837642,-155.0,0.00010861,2]
[335672077,1724413837652,-557.08514,0.0001089,2]
[335672078,1724413837662,-49665.9738,0.00010899,2]
[335672079,1724413837672,-156.4355,0.000109,2]
[335672080,1724413837683,-8000.6901,0.000109,2]
[335672081,1724413837694,-7500.0,0.000109,2]
[335672082,1724413837705,-7533.49441871,0.000109,2]
[335672083,1724413837716,-200.0,0.00010959,2]
[335672084,1724413837727,-196.39,0.00010959,2]
[335672085,1724413837738,-150.93,0.0001099,2]
[335672086,1724413837750,-523.02806141,0.00010993,2]
[335672087,1724413837761,-462.18942209,0.00010999,2]
[335672088,1724413837772,-500.0,0.00010999,2]
[335672089,1724413837783,-500.0,0.00010999,2]
[335672090,1724413837796,-5800.0,0.00010999,2]
[335672091,1724413837807,-500.0,0.00010999,2]
[335672092,1724413837818,-498.47965495,0.00010999,2]
[335672093,1724413837830,-500.0,0.00010999,2]
[335672094,1724413837841,-500.0,0.00010999,2]
[335672095,1724413837851,-500.0,0.00010999,2]
[335672096,1724413837862,-500.0,0.00010999,2]
[335672097,1724413837873,-500.0,0.00010999,2]
[335672098,1724413837883,-500.0,0.00010999,2]
[335672100,1724413837893,-500.0,0.00010999,2]
[335672102,1724413837903,-305.94839502,0.00010999,2]
[335672104,1724413837917,-500.0,0.00010999,2]
[335672106,1724413837928,-500.0,0.00010999,2]
[335672108,1724413837940,-325.19142604,0.00010999,2]
[335672109,1724413837951,-500.0,0.00010999,2]
[335672111,1724413837964,-500.0,0.00010999,2]
[335672113,1724413837976,-500.0,0.00010999,2]
[335672114,1724413837988,-500.0,0.00010999,2]
[335672116,1724413837998,-503.37109964,0.00010999,2]
[335672118,1724413838010,-500.0,0.00010999,2]
[335672119,1724413838022,-500.0,0.00010999,2]
[335672121,1724413838033,-500.0,0.00010999,2]
[335672123,1724413838045,-500.0,0.00010999,2]
[335672124,1724413838056,-399.02609118,0.00010999,2]
[335672126,1724413838067,-500.0,0.00010999,2]
[335672128,1724413838078,-500.0,0.00010999,2]
[335672129,1724413838088,-500.0,0.00010999,2]
[335672131,1724413838099,-500.0,0.00010999,2]
[335672132,1724413838110,-500.0,0.00010999,2]
[335672134,1724413838120,-500.0,0.00010999,2]
[335672136,1724413838133,-500.0,0.00010999,2]
[335672137,1724413838144,-500.0,0.00010999,2]
[335672139,1724413838155,-204.44,0.00010999,2]
[335672141,1724413838166,-500.0,0.00010999,2]
[335672143,1724413838179,-592.04,0.00010999,2]
[335672145,1724413838190,-500.0,0.00010999,2]
[335672147,1724413838201,-500.0,0.00010999,2]
[335672148,1724413838212,-391.55190556,0.00010999,2]
[335672150,1724413838223,-500.0,0.00010999,2]
[335672152,1724413838235,-500.0,0.00010999,2]
[335672153,1724413838245,-500.0,0.00010999,2]
[335672155,1724413838256,-500.0,0.00010999,2]
[335672157,1724413838267,-500.0,0.00010999,2]
[335672159,1724413838278,-500.0,0.00010999,2]
[335672161,1724413838289,-500.0,0.00010999,2]
[335672162,1724413838300,-500.0,0.00010999,2]
[335672164,1724413838311,-500.0,0.00010999,2]
[335672166,1724413838322,-500.0,0.00010999,2]
[335672168,1724413838333,-242.89238592,0.00010999,2]
[335672170,1724413838344,-667.31,0.00010999,2]
[335672171,1724413838354,-667.31,0.00010999,2]
[335672173,1724413838366,-667.31,0.00010999,2]
[335672175,1724413838377,-667.31,0.00010999,2]
[335672176,1724413838387,-667.31,0.00010999,2]
[335672178,1724413838399,-667.31,0.00010999,2]
[335672180,1724413838410,-667.31,0.00010999,2]
[335672182,1724413838422,-667.31,0.00010999,2]
[335672183,1724413838433,-667.31,0.00010999,2]
[335672185,1724413838443,-667.31,0.00010999,2]
[335672187,1724413838455,-667.31,0.00010999,2]
[335672189,1724413838466,-667.31,0.00010999,2]
[335672191,1724413838476,-667.31,0.00010999,2]
[335672192,1724413838487,-667.31,0.00010999,2]
[335672194,1724413838498,-667.31,0.00010999,2]
[335672196,1724413838508,-667.31,0.00010999,2]
[335672198,1724413838518,-667.31,0.00010999,2]
[335672200,1724413838530,-667.31,0.00010999,2]
[335672201,1724413838541,-667.31,0.00010999,2]
[335672203,1724413838551,-667.31,0.00010999,2]
[335672205,1724413838562,-667.31,0.00010999,2]
[335672207,1724413838573,-667.31,0.00010999,2]
[335672209,1724413838583,-667.31,0.00010999,2]
[335672210,1724413838594,-667.49063457,0.00010999,2]
[335672212,1724413838604,-569.0,0.00011,2]
[335672214,1724413838615,-89087.74723424,0.00011,2]
[335672372,1724413845949,-384.50318454,0.00010026,2]
[335672373,1724413845962,-1580.03465265,0.00010026,2]
[335672374,1724413845972,-336.83961592,0.000109,2]
[335672375,1724413845982,-513.0,0.00011,2]
[335672376,1724413845992,-618.43204143,0.00011,2]
[335672385,1724414159327,6000.0,0.00027,120]
[335672386,1724414172956,6000.0,0.00027,120]
[335672387,1724414221675,500.0,0.00027,120]
[335672388,1724414275200,6000.0,0.00027,120]
[335672389,1724414307396,10925.56669,0.00010004,2]
[335672390,1724414345695,158.98,7.316e-05,2]
[335672391,1724414364891,1831.82850427,9.954e-05,2]
[335672392,1724414367593,693.81147751,0.00010004,2]
[335672393,1724414368576,340.59471601,0.00010004,2]
[335672395,1724414456857,313.23,8.219e-05,2]
[335672396,1724414555824,1276.0146638,9.962e-05,2]
[335672397,1724414570908,211.16220297,0.0001,2]
[335672398,1724414590859,250.0,0.00010002,2]
[335672399,1724414605307,1000.0,0.00027,120]
[335672400,1724414605722,1000.0,0.00027,120]
[335672401,1724414607257,1000.0,0.00010007,2]
[335672402,1724414611350,6988.21,0.00010007,2]
[335672403,1724414620476,32925.8725894,0.00010009,2]
[335672404,1724414640022,215.85,9.99e-05,2]
[335672405,1724414641411,500.0,0.00027,120]
[335672417,1724414664500,200.0,0.00027,120]
[335672420,1724414747439,500.0,9.941e-05,2]
[335672421,1724414812532,1298.83,0.00010001,2]